fUSD/lending_fUSD_20260427
["ID","MTS","AMOUNT","RATE_DAILY","PERIOD"]
[421252861,1777287186193,-983.88051158,0.00039178,120]
[421252862,1777287186203,-806.6438024,0.00039178,120]
[421252863,1777287186212,-1721.58061157,0.00039178,120]
[421252864,1777287186221,-899.97506175,0.00039178,120]
[421252865,1777287186231,-1666.58286513,0.00039178,120]
[421252866,1777287186240,-903.68977136,0.00039178,120]
[421252867,1777287186250,-640.30550838,0.00039178,120]
[421252868,1777287186260,-2805.48394227,0.00039178,120]
[421252869,1777287186270,-1658.76371514,0.00039178,120]
[421252870,1777287186279,-507.28508516,0.00039178,120]
[421252871,1777287186288,-760.21214172,0.00039178,120]
[421252872,1777287186298,-1131.53109772,0.00039178,120]
[421252873,1777287186307,-1275.35502263,0.00039178,120]
[421252874,1777287186317,-1186.75407498,0.00039178,120]
[421252875,1777287186326,-726.14801223,0.00039178,120]
[421252876,1777287186335,-1746.63055408,0.00039178,120]
[421252877,1777287186344,-857.93287265,0.00039178,120]
[421252878,1777287186354,-942.51797314,0.00039178,120]
[421252879,1777287186364,-888.77904266,0.00039178,120]
[421252880,1777287186373,-615.73182664,0.00039178,120]
[421252881,1777287186383,-691.41488613,0.00039178,120]
[421252882,1777287186392,-1549.90805885,0.00039178,120]
[421252883,1777287186402,-597.25725961,0.00039178,120]
[421252884,1777287186411,-646.48979361,0.00039178,120]
[421252885,1777287186420,-516.63605031,0.00039178,120]
[421252886,1777287186430,-996.48633277,0.00039178,120]
[421252887,1777287186440,-729.97422932,0.00039178,120]
[421252888,1777287186449,-862.43484485,0.00039178,120]
[421252889,1777287186459,-902.80122594,0.00039178,120]
[421252890,1777287186467,-933.04552868,0.00039178,120]
[421252891,1777287186476,-932.2173407,0.00039178,120]
[421252892,1777287186485,-501.51358616,0.00039178,120]
[421252893,1777287186495,-638.82857919,0.00039178,120]
[421252894,1777287186504,-946.82036828,0.00039178,120]
[421252895,1777287186514,-1014.32115998,0.00039178,120]
[421252896,1777287186524,-715.01242073,0.00039178,120]
[421252897,1777287186533,-1988.30557196,0.00039178,120]
[421252898,1777287186543,-563.97336043,0.00039178,120]
[421252899,1777287186552,-1640.47389723,0.00039178,120]
[421252900,1777287186562,-886.10938308,0.00039178,120]
[421252901,1777287186571,-892.06297946,0.00039178,120]
[421252902,1777287186581,-669.74764709,0.00039178,120]
[421252903,1777287186590,-1390.86866616,0.00039178,120]
[421252904,1777287186599,-668.20883414,0.00039178,120]
[421252905,1777287186610,-660.30378244,0.00039178,120]
[421252906,1777287186619,-691.85594707,0.00039178,120]
[421252907,1777287186628,-691.11744634,0.00039178,120]
[421252908,1777287186638,-618.72836709,0.00039178,30]
[421252909,1777287186648,-922.78864957,0.00039178,120]
[421252910,1777287186657,-953.61142552,0.00039178,120]
[421252911,1777287186667,-525.30601644,0.00039178,120]
[421252912,1777287186676,-4918.13901119,0.00039178,120]
[421252913,1777287186685,-551.43151065,0.00039178,120]
[421252914,1777287186695,-840.35383261,0.00039178,120]
[421252915,1777287186704,-1800.73833751,0.00039178,120]
[421252916,1777287186714,-740.01140609,0.00039178,120]
[421252917,1777287186723,-919.97505439,0.00039178,120]
[421252918,1777287186732,-1344.44704091,0.00039178,120]
[421252919,1777287186743,-916.94886711,0.00039178,120]
[421252920,1777287186752,-1078.15,0.00039178,120]
[421252921,1777287186761,-1345.97552559,0.00039178,120]
[421252922,1777287186771,-947.68839265,0.00039178,120]
[421252923,1777287186780,-549.96959223,0.00039178,120]
[421252924,1777287186789,-748.4192374,0.00039178,120]
[421252925,1777287186800,-1742.24639748,0.00039178,120]
[421252926,1777287186809,-980.33793031,0.00039178,120]
[421252927,1777287186819,-548.09,0.00039178,120]
[421252928,1777287186828,-808.88332349,0.00039178,120]
[421252929,1777287186838,-697.21537175,0.00039178,120]
[421252930,1777287186848,-698.92692843,0.00039178,120]
[421252931,1777287186858,-861.38465006,0.00039178,120]
[421252932,1777287186868,-599.77547352,0.00039178,120]
[421252933,1777287186877,-971.20782826,0.00039178,120]
[421252934,1777287186887,-1899.02885239,0.00039178,120]
[421252935,1777287186896,-2008.2338813,0.00039178,120]
[421252936,1777287186906,-547.08269729,0.00039178,120]
[421252937,1777287186915,-933.2214149,0.00039178,120]
[421252938,1777287186924,-923.58944525,0.00039178,120]
[421252939,1777287186934,-814.43839432,0.00039178,7]
[421252940,1777287186943,-546.12122494,0.00039178,120]
[421252941,1777287186952,-607.3028514,0.00039178,120]
[421252942,1777287186962,-1022.21405956,0.00039178,120]
[421252943,1777287186972,-1403.48932629,0.00039178,120]
[421252944,1777287186982,-997.01415162,0.00039178,120]
[421252945,1777287186991,-572.0793963,0.00039178,120]
[421252946,1777287187001,-2027.45597546,0.00039178,120]
[421252947,1777287187011,-544.8585655,0.00039178,120]
[421252948,1777287187020,-1173.82020861,0.00039178,120]
[421252949,1777287187030,-580.98727022,0.00039178,120]
[421252950,1777287187040,-957.29918416,0.00039178,120]
[421252951,1777287187050,-1129.59339748,0.00039178,120]
[421252952,1777287187059,-549.65887229,0.00039178,120]
[421252953,1777287187186,-957.81733223,0.00039178,120]
[421252954,1777287187197,-2273.96259289,0.00039178,120]
[421252955,1777287187207,-531.3833983,0.00039178,120]
[421252956,1777287187217,-826.48112201,0.00039178,120]
[421252957,1777287187228,-509.50105019,0.00039178,120]
[421252958,1777287187237,-1144.93247894,0.00039178,120]
[421252959,1777287187247,-870.83115408,0.00039178,120]
[421252960,1777287187257,-1987.67090118,0.00039178,120]
[421252961,1777287187266,-1889.98976731,0.00039178,120]
[421252962,1777287187276,-997.42269004,0.00039178,120]
[421252963,1777287187285,-645.69,0.00039178,120]
[421252964,1777287187295,-551.61,0.00039178,120]
[421252965,1777287187305,-607.80873198,0.00039178,120]
[421252966,1777287187314,-1410.29347775,0.00039178,120]
[421252967,1777287187323,-1075.40625531,0.00039178,120]
[421252968,1777287187333,-512.22333621,0.00039178,120]
[421252969,1777287187343,-571.95897328,0.00039178,120]
[421252970,1777287187353,-670.9341067,0.00039178,120]
[421252971,1777287187363,-928.00272156,0.00039178,120]
[421252972,1777287187373,-733.47154705,0.00039178,120]
[421252973,1777287187382,-845.68000774,0.00039178,120]
[421252974,1777287187391,-1708.88835323,0.00039178,120]
[421252975,1777287187401,-1389.17212546,0.00039178,120]
[421252976,1777287187411,-970.00112798,0.00039178,120]
[421252977,1777287187419,-721.46875303,0.00039178,120]
[421252978,1777287187429,-832.37299998,0.00039178,120]
[421252979,1777287187438,-1257.16845257,0.00039178,120]
[421252980,1777287187447,-822.88828779,0.00039178,120]
[421252981,1777287187457,-599.45539564,0.00039178,30]
[421252982,1777287187466,-1697.96017983,0.00039178,120]
[421252983,1777287187475,-740.8663556,0.00039178,120]
[421252984,1777287187488,-767.69,0.00039178,120]
[421252985,1777287187498,-704.76636273,0.00039178,120]
[421252986,1777287187507,-874.81291677,0.00039178,120]
[421252987,1777287187517,-725.84815645,0.00039178,120]
[421252988,1777287187526,-539.52056045,0.00039178,120]
[421252989,1777287187535,-3139.50970717,0.00039178,120]
[421252990,1777287187544,-1571.68410716,0.00039178,120]
[421252991,1777287187553,-631.92990034,0.00039178,120]
[421252992,1777287187563,-724.68861742,0.00039178,120]
[421252993,1777287187573,-714.65191284,0.00039178,120]
[421252994,1777287187582,-830.53006918,0.00039178,120]
[421252995,1777287187592,-530.03468016,0.00039178,120]
[421252996,1777287187602,-890.56006539,0.00039178,120]
[421252997,1777287187611,-633.28881276,0.00039178,120]
[421252998,1777287187620,-1042.15209181,0.00039178,120]
[421252999,1777287187630,-1031.39382648,0.00039178,120]
[421253000,1777287187639,-789.94836036,0.00039178,120]
[421253001,1777287187648,-1044.56,0.00039178,7]
[421253002,1777287187659,-2152.79095303,0.00039178,120]
[421253003,1777287187669,-951.59185943,0.00039178,120]
[421253004,1777287187678,-10570.95060079,0.00039178,120]
[421253005,1777287187688,-953.36998813,0.00039178,120]
[421253006,1777287187698,-684.02337033,0.00039178,120]
[421253007,1777287187707,-1457.67673545,0.00039178,120]
[421253008,1777287187717,-927.32737333,0.00039178,120]
[421253009,1777287187726,-853.6374407,0.00039178,120]
[421253010,1777287187736,-692.03033529,0.00039178,120]
[421253011,1777287187745,-1072.73731439,0.00039178,120]
[421253012,1777287187754,-2915.65877724,0.00039178,120]
[421253013,1777287187764,-731.55974922,0.00039178,120]
[421253014,1777287187774,-701.45750591,0.00039178,120]
[421253015,1777287187785,-955.08434448,0.00039178,120]
[421253016,1777287187795,-838.24806754,0.00039178,120]
[421253017,1777287187805,-1783.23025589,0.00039178,120]
[421253018,1777287187815,-4705.3333402,0.00039178,120]
[421253019,1777287187826,-1730.73417337,0.00039178,120]
[421253020,1777287187836,-1123.91072259,0.00039178,120]
[421253021,1777287187846,-714.94700852,0.00039178,120]
[421253022,1777287187856,-1408.91335493,0.00039178,120]
[421253023,1777287187865,-5381.20855688,0.00039178,120]
[421253024,1777287187876,-667.90275204,0.00039178,120]
[421253025,1777287187886,-1779.74032391,0.00039178,120]
[421253026,1777287187895,-922.74725034,0.00039178,120]
[421253027,1777287187904,-625.65318841,0.00039178,5]
[421253028,1777287187913,-1690.96199683,0.00039178,120]
[421253029,1777287187923,-674.64743438,0.00039178,120]
[421253030,1777287187933,-2035.10716833,0.00039178,120]
[421253031,1777287187942,-1164.54584227,0.00039178,120]
[421253032,1777287187952,-1082.22354227,0.00039178,120]
[421253033,1777287187963,-465.62023191,0.00039178,120]
[421253034,1777287187972,-999.19598125,0.00039178,120]
[421253035,1777287187982,-1043.27,0.00039178,120]
[421253036,1777287187992,-784.27338583,0.00039178,120]
[421253037,1777287188001,-1079.81292443,0.00039178,120]
[421253038,1777287188011,-1144.13562293,0.00039178,120]
[421253039,1777287188020,-1451.65894034,0.00039178,120]
[421253040,1777287188030,-819.28116995,0.00039178,120]
[421253041,1777287188040,-1138.61197288,0.00039178,120]
[421253042,1777287188049,-601.09,0.00039178,120]
[421253043,1777287188059,-4201.89115583,0.00039178,120]
[421253044,1777287188070,-1047.74889038,0.00039178,120]
[421253045,1777287188080,-996.78896249,0.00039178,120]
[421253046,1777287188091,-795.24060919,0.00039178,120]
[421253047,1777287188101,-1162.58905534,0.00039178,120]
[421253048,1777287188111,-845.18534602,0.00039178,120]
[421253049,1777287188121,-541.99841697,0.00039178,120]
[421253050,1777287188131,-1487.419346,0.00039178,120]
[421253051,1777287188141,-899.15406568,0.00039178,120]
[421253052,1777287188151,-2636.13882967,0.00039178,120]
[421253053,1777287188161,-1789.49259533,0.00039178,120]
[421253054,1777287188171,-500.82,0.00039178,120]
[421253055,1777287188181,-892.2767543,0.00039178,120]
[421253056,1777287188190,-1085.34704466,0.00039178,120]
[421253057,1777287188200,-631.43526574,0.00039178,120]
[421253058,1777287188211,-581.84299907,0.00039178,120]
[421253059,1777287188220,-808.4507076,0.00039178,120]
[421253060,1777287188230,-741.64242198,0.00039178,120]
[421253061,1777287188240,-762.29063709,0.00039178,120]
[421253062,1777287188250,-1157.98102656,0.00039178,120]
[421253063,1777287188261,-634.0351132,0.00039178,120]
[421253064,1777287188271,-874.80960922,0.00039178,120]
[421253065,1777287188283,-901.0444177,0.00039178,120]
[421253066,1777287188293,-10204.87770517,0.00039178,120]
[421253067,1777287188303,-1526.40678207,0.00039178,120]
[421253068,1777287188313,-891.81360533,0.00039178,120]
[421253069,1777287188323,-1367.71,0.00039178,120]
[421253070,1777287188333,-683.45172131,0.00039178,120]
[421253071,1777287188343,-737.72006838,0.00039178,120]
[421253072,1777287188352,-10627.70808326,0.00039178,11]
[421253073,1777287188363,-1508.45802568,0.00039178,120]
[421253074,1777287188373,-944.67584234,0.00039178,120]
[421253075,1777287188383,-1952.56991062,0.00039178,120]
[421253076,1777287188393,-992.54490992,0.00039178,120]
[421253077,1777287188403,-644.53895727,0.00039178,120]
[421253078,1777287188413,-856.07012171,0.00039178,120]
[421253079,1777287188424,-938.36601444,0.00039178,120]
[421253080,1777287188434,-977.00065066,0.00039178,120]
[421253081,1777287188444,-505.22151869,0.00039178,120]
[421253082,1777287188455,-889.37607675,0.00039178,120]
[421253083,1777287188465,-816.88636742,0.00039178,120]
[421253084,1777287188475,-624.95874772,0.00039178,120]
[421253085,1777287188487,-9821.28909211,0.00039178,14]
[421253086,1777287188497,-523.12989545,0.00039178,120]
[421253087,1777287188507,-2650.96883193,0.00039178,2]
[421253088,1777287188516,-823.11803248,0.00039178,120]
[421253089,1777287188526,-729.38845389,0.00039178,120]
[421253090,1777287188535,-1000.0,0.00039178,120]
[421253091,1777287188545,-1044.85350304,0.00039178,120]
[421253092,1777287188554,-2033.97559772,0.00039178,120]
[421253093,1777287188564,-2315.40689568,0.00039178,120]
[421253094,1777287188574,-873.10948517,0.00039178,120]
[421253095,1777287188583,-1144.42695922,0.00039178,120]
[421253096,1777287188593,-957.93004327,0.00039178,120]
[421253097,1777287188603,-652.01380041,0.00039178,120]
[421253098,1777287188613,-905.89298246,0.00039178,120]
[421253099,1777287188622,-659.80838138,0.00039178,120]
[421253100,1777287188632,-572.94442941,0.00039178,120]
[421253101,1777287188643,-527.08484911,0.00039178,120]
[421253102,1777287188653,-936.43399248,0.00039178,120]
[421253103,1777287188663,-2198.73574057,0.00039178,31]
[421253104,1777287188673,-7236.72985434,0.00039178,120]
[421253105,1777287188683,-601.30974152,0.00039178,120]
[421253106,1777287188693,-5800.0,0.00039183,14]
[421253107,1777287188703,-6616.9285,0.00039187,2]
[421253108,1777287188712,-184.04815743,0.00039188,120]
[421253109,1777287188723,-170.4716336,0.00039188,120]
[421253110,1777287188733,-5800.0,0.00039192,14]
[421253111,1777287188742,-5800.0,0.000392,14]
[421253112,1777287188752,-2126.0759,0.00039208,2]
[421253113,1777287188762,-5800.0,0.00039208,14]
[421253114,1777287188772,-5800.0,0.00039217,14]
[421253115,1777287188782,-5800.0,0.00039226,14]
[421253116,1777287188805,-5800.0,0.00039234,14]
[421253117,1777287188815,-5800.0,0.00039243,14]
[421253118,1777287188826,-5800.0,0.00039251,14]
[421253119,1777287188836,-235.95,0.00039264,120]
[421253120,1777287188847,-389.71,0.00039264,120]
[421253121,1777287188857,-506.0,0.00039275,12]
[421253122,1777287188867,-5015.5435,0.00039302,2]
[421253123,1777287188878,-6616.9285,0.00039326,2]
[421253124,1777287188889,-150.0,0.00039331,7]
[421253125,1777287188900,-2126.0759,0.00039358,2]
[421253126,1777287188910,-5015.5435,0.00039442,2]
[421253127,1777287188920,-681833.612,0.00039444,7]
[421253128,1777287188930,-365.97,0.00039445,30]
[421253129,1777287188940,-500.0,0.00039452,120]
[421253130,1777287188951,-1000.0,0.00039452,120]
[421253131,1777287188961,-184.04815743,0.00039462,120]
[421253132,1777287188971,-170.4716336,0.00039462,120]
[421253133,1777287188982,-6616.9285,0.00039465,2]
[421253134,1777287188993,-10013.68002549,0.00039468,2]
[421253135,1777287189004,-5000.0,0.000395,7]
[421253136,1777287189014,-2126.0759,0.00039507,2]
[421253137,1777287189025,-205.4,0.0003956,45]
[421253138,1777287189036,-5015.5435,0.00039583,2]
[421253139,1777287189048,-6616.9285,0.00039604,2]
[421253140,1777287189058,-1104.0,0.00039621,30]
[421253141,1777287189069,-214.33253288,0.00039645,120]
[421253142,1777287189080,-2126.0759,0.00039657,2]
[421253143,1777287189091,-500.0,0.00039686,60]
[421253144,1777287189101,-1173.79,0.0003972,120]
[421253145,1777287189113,-5015.5435,0.00039723,2]
[421253146,1777287189123,-151.0,0.00039725,30]
[421253147,1777287189135,-500.0,0.00039725,30]
[421253148,1777287189146,-500.0,0.00039725,30]
[421253149,1777287189158,-670.58624095,0.00039725,30]
[421253150,1777287189170,-500.0,0.00039725,30]
[421253151,1777287189181,-184.04815743,0.00039736,120]
[421253152,1777287189202,-170.4716336,0.00039736,120]
[421253153,1777287189220,-6616.9285,0.00039743,2]
[421253154,1777287189237,-500.0,0.000398,30]
[421253155,1777287189258,-571.16,0.000398,120]
[421253156,1777287189276,-2126.0759,0.00039807,2]
[421253157,1777287189296,-1238.16,0.00039855,120]
[421253158,1777287189312,-300.0,0.00039859,30]
[421253159,1777287189328,-5015.5435,0.00039863,2]
[421253160,1777287189348,-313817.99439307,0.0003987,14]
[421253161,1777287189366,-2878.85353947,0.0003988,120]
[421253162,1777287189386,-6616.9285,0.00039882,2]
[421253163,1777287189401,-434.91,0.00039882,120]
[421253164,1777287189417,-3000.0,0.00039898,31]
[421253165,1777287189436,-521.2608452,0.000399,120]
[421253166,1777287189451,-239.39019681,0.000399,120]
[421253167,1777287189467,-194.5,0.000399,120]
[421253168,1777287189484,-420.0,0.000399,2]
[421253169,1777287189498,-1104.0,0.00039905,30]
[421253170,1777287189519,-389147.62,0.00039917,30]
[421253171,1777287189534,-1238.16,0.00039955,120]
[421253172,1777287189550,-2126.0759,0.00039956,2]
[421253173,1777287189565,-500.0,0.0003997,2]
[421253174,1777287189580,-1000.0,0.0003997,2]
[421253175,1777287189596,-212.39447274,0.00039982,120]
[421253176,1777287189611,-50000.0,0.0004,37]
[421253177,1777287189626,-44600.0,0.0004,10]
[421253178,1777287189641,-504.673,0.0004,15]
[421253179,1777287189655,-165.08,0.0004,3]
[421253180,1777287189670,-2353.9953105,0.0004,2]
[421253181,1777287189685,-501.0,0.0004,120]
[421253182,1777287189701,-801.04175396,0.0004,81]
[421253183,1777287189716,-500.39715902,0.0004,120]
[421253184,1777287189730,-449.0,0.0004,120]
[421253185,1777287189744,-500.0,0.0004,120]
[421253186,1777287189759,-500.0,0.0004,120]
[421253187,1777287189774,-152.0,0.0004,120]
[421253188,1777287189789,-212.0,0.0004,2]
[421253189,1777287189809,-166.0,0.0004,120]
[421253190,1777287189824,-176.54428823,0.0004,30]
[421253191,1777287189839,-1000.0,0.0004,120]
[421253192,1777287189854,-34500.0,0.0004,40]
[421253193,1777287189869,-1000.0,0.0004,120]
[421253194,1777287189884,-1000.0,0.0004,120]
[421253195,1777287189899,-1000.0,0.0004,120]
[421253196,1777287189914,-1000.0,0.0004,120]
[421253197,1777287189928,-1000.0,0.0004,120]
[421253198,1777287189942,-463.9696,0.0004,120]
[421253199,1777287189957,-100000.0,0.0004,60]
[421253200,1777287189972,-15130.0,0.0004,30]
[421253201,1777287189987,-4000.0,0.0004,10]
[421253202,1777287190001,-500.0,0.0004,120]
[421253203,1777287190017,-500.0,0.0004,120]
[421253204,1777287190032,-2751.016896,0.0004,120]
[421253205,1777287190047,-161.0,0.0004,120]
[421253206,1777287190060,-162.27045424,0.0004,3]
[421253207,1777287190075,-300.0,0.0004,30]
[421253208,1777287190089,-212.0,0.0004,30]
[421253209,1777287190103,-442.6,0.0004,120]
[421253210,1777287190117,-331.69,0.0004,120]
[421253211,1777287190132,-153.67,0.0004,120]
[421253212,1777287190147,-231.26,0.0004,120]
[421253213,1777287190161,-413.81,0.0004,120]
[421253214,1777287190175,-707.96,0.0004,120]
[421253215,1777287190189,-162.27045424,0.0004,7]
[421253216,1777287190204,-24999.99,0.0004,120]
[421253217,1777287190218,-5017.62444268,0.00040003,10]
[421253218,1777287190233,-5015.5435,0.00040004,2]
[421253219,1777287190248,-208.44995652,0.0004001,120]
[421253220,1777287190262,-184.04815743,0.0004001,120]
[421253221,1777287190276,-205.43175408,0.0004001,120]
[421253222,1777287190291,-170.4716336,0.0004001,120]
[421253223,1777287190308,-769.20688488,0.00040012,120]
[421253224,1777287190323,-6616.9285,0.00040021,2]
[421253225,1777287190337,-5567390.6113951,0.0004005,120]
[421253226,1777287190352,-7469.75466232,0.00040055,2]
[421253227,1777287190366,-1238.16,0.00040055,120]
[421253228,1777287190380,-680.67297285,0.00040062,120]
[421253229,1777287190394,-2126.0759,0.00040106,2]
[421253230,1777287190410,-5015.5435,0.00040144,2]
[421253231,1777287190423,-1238.16,0.00040155,120]
[421253232,1777287190437,-6616.9285,0.00040159,2]
[421253233,1777287190451,-1371.04372273,0.00040169,120]
[421253234,1777287190466,-1295.90600448,0.0004018,120]
[421253235,1777287190480,-1933.50396762,0.0004018,120]
[421253236,1777287190494,-1104.0,0.00040189,30]
[421253237,1777287190508,-246.34,0.00040221,30]
[421253238,1777287190522,-891.17233544,0.00040222,120]
[421253239,1777287190536,-1238.16,0.00040255,120]
[421253240,1777287190551,-25000.0,0.00040255,15]
[421253241,1777287190565,-2126.0759,0.00040256,2]
[421253242,1777287190579,-2010.368206,0.0004026,120]
[421253243,1777287190593,-500.0,0.0004026,120]
[421253244,1777287190607,-25000.0,0.00040264,15]
[421253245,1777287190621,-2315.25581011,0.00040267,120]
[421253246,1777287190635,-500.0,0.00040271,30]
[421253247,1777287190648,-321.13,0.00040271,30]
[421253248,1777287190662,-25000.0,0.00040273,15]
[421253249,1777287190677,-10783.35706524,0.00040273,15]
[421253250,1777287190691,-181.65268001,0.00040273,15]
[421253251,1777287190705,-500.0,0.00040274,120]
[421253252,1777287190717,-184.04815743,0.00040284,120]
[421253253,1777287190732,-5015.5435,0.00040284,2]
[421253254,1777287190747,-6616.9285,0.00040298,2]
[421253255,1777287190760,-157.2068802,0.00040305,7]
[421253256,1777287190775,-1238.16,0.00040355,120]
[421253257,1777287190789,-2000.0,0.00040378,120]
[421253258,1777287190813,-2000.0,0.00040378,120]
[421253259,1777287190827,-2126.0759,0.00040405,2]
[421253260,1777287190842,-5015.5435,0.00040425,2]
[421253261,1777287190856,-1349.97199069,0.00040432,120]
[421253262,1777287190870,-6616.9285,0.00040437,2]
[421253263,1777287190883,-1238.16,0.00040455,120]
[421253264,1777287190898,-1104.0,0.00040473,30]
[421253265,1777287190913,-1437.71448812,0.000405,120]
[421253266,1777287190926,-700.0,0.000405,120]
[421253267,1777287190940,-1000.0,0.000405,110]
[421253268,1777287190955,-150.0,0.00040522,90]
[421253269,1777287190968,-2126.0759,0.00040555,2]
[421253270,1777287190982,-1238.16,0.00040555,120]
[421253271,1777287190996,-184.04815743,0.00040558,120]
[421253272,1777287191010,-5015.5435,0.00040565,2]
[421253273,1777287191025,-1000.0,0.0004057,3]
[421253274,1777287191039,-500.0,0.0004057,3]
[421253275,1777287191053,-151.0,0.00040575,30]
[421253276,1777287191067,-500.0,0.00040575,30]
[421253277,1777287191085,-500.0,0.00040575,30]
[421253278,1777287191100,-646.65982734,0.00040575,30]
[421253279,1777287191115,-500.0,0.00040575,30]
[421253280,1777287191129,-6616.9285,0.00040576,2]
[421253281,1777287191143,-157.2068802,0.00040579,7]
[421253282,1777287191157,-471.91,0.00040599,120]
[421253283,1777287191172,-779.44,0.00040599,120]
[421253284,1777287191186,-220.26,0.00040599,120]
[421253285,1777287191201,-166.0,0.000406,120]
[421253286,1777287191218,-700.0,0.000406,120]
[421253287,1777287191244,-1000.0,0.000406,110]
[421253288,1777287191259,-1238.16,0.00040655,120]
[421253289,1777287191275,-1444.0,0.00040658,120]
[421253290,1777287191289,-700.0,0.000407,120]
[421253291,1777287191303,-619.13,0.000407,110]
[421253292,1777287191317,-5015.5435,0.00040705,2]
[421253293,1777287191331,-2126.0759,0.00040705,2]
[421253294,1777287191345,-6616.9285,0.00040715,2]
[421253295,1777287191360,-150.0,0.00040737,120]
[421253296,1777287191374,-214.33253288,0.00040741,120]
[421253297,1777287191387,-451.93038661,0.0004075,120]
[421253298,1777287191402,-1238.16,0.00040755,120]
[421253299,1777287191416,-1104.0,0.00040757,120]
[421253300,1777287191430,-1000.0,0.0004079,120]
[421253301,1777287191444,-1000.0,0.0004079,120]
[421253302,1777287191457,-1000.0,0.0004079,120]
[421253303,1777287191471,-1000.0,0.0004079,120]
[421253304,1777287191485,-1000.0,0.0004079,120]
[421253305,1777287191499,-152.0,0.000408,120]
[421253306,1777287191513,-700.0,0.000408,120]
[421253307,1777287191527,-503.63,0.000408,91]
[421253308,1777287191542,-1000.0,0.000408,99]
[421253309,1777287191556,-150.0,0.00040802,90]
[421253310,1777287191570,-288.27,0.00040802,90]
[421253311,1777287191584,-150.0,0.00040802,90]
[421253312,1777287191599,-1236.5434,0.0004081,4]
[421253313,1777287191615,-2000.0,0.0004081,4]
[421253314,1777287191629,-150.0,0.00040815,120]
[421253315,1777287191643,-212.39447274,0.00040825,120]
[421253316,1777287191657,-184.04815743,0.00040832,120]
[421253317,1777287191672,-506.0,0.00040841,14]
[421253318,1777287191687,-5015.5435,0.00040846,2]
[421253319,1777287191702,-157.2068802,0.00040853,7]
[421253320,1777287191717,-500.0,0.00040853,60]
[421253321,1777287191731,-2126.0761,0.00040854,2]
[421253322,1777287191746,-6616.9293,0.00040854,2]
[421253323,1777287191759,-1238.16,0.00040855,120]
[421253324,1777287191774,-150.0,0.00040879,30]
[421253325,1777287191796,-8165.15927263,0.00040879,30]
[421253326,1777287191818,-194.5,0.000409,120]
[421253327,1777287191832,-700.0,0.000409,120]
[421253328,1777287191847,-700.0,0.000409,91]
[421253329,1777287191861,-1000.0,0.000409,99]
[421253330,1777287191876,-3177.38376246,0.000409,30]
[421253331,1777287191891,-400.0,0.00040917,2]
[421253332,1777287191906,-350.0,0.00040917,2]
[421253333,1777287191921,-150.0,0.00040935,120]
[421253334,1777287191935,-300.0,0.00040943,2]
[421253335,1777287191950,-330.94,0.00040943,2]
[421253336,1777287191965,-270.03,0.00040943,2]
[421253337,1777287191980,-238536.0,0.0004095,60]
[421253338,1777287191995,-1238.16,0.00040955,120]
[421253339,1777287192009,-222.409637,0.00040964,53]
[421253340,1777287192024,-2004.0,0.0004097,120]
[421253341,1777287192038,-2004.0,0.0004097,120]
[421253342,1777287192053,-2004.0,0.0004098,120]
[421253343,1777287192066,-2004.0,0.0004098,120]
[421253344,1777287192081,-2004.0,0.0004098,120]
[421253345,1777287192096,-2005.54,0.0004098,120]
[421253346,1777287192111,-5015.5435,0.00040986,2]
[421253347,1777287192125,-2004.0,0.0004099,120]
[421253348,1777287192140,-2004.0,0.0004099,120]
[421253349,1777287192155,-2004.0,0.0004099,120]
[421253350,1777287192169,-2004.0,0.0004099,120]
[421253351,1777287192183,-438.61151693,0.00041,5]
[421253352,1777287192199,-318.35,0.00041,7]
[421253353,1777287192213,-354.0,0.00041,7]
[421253354,1777287192227,-500.0,0.00041,45]
[421253355,1777287192242,-500.0,0.00041,45]
[421253356,1777287192256,-500.0,0.00041,45]
[421253357,1777287192664,-500.0,0.00041,45]
[421253358,1777287192688,-1000.0,0.00041,120]
[421253359,1777287192704,-214.88286406,0.00041,120]
[421253360,1777287192734,-500.0,0.00041,45]